Workbook

Sheet intro
A1: 1-100 og 1-20 challenge
A2: På arket | B2: 1-100 print' | C2: kan du finde print af numrene 1-100
A3: På arket | B3: 1-100 hul print' | C3: kan du finde print af numrene 1-100 med et antal manglende tal - vælg selv antal herunder
A4: På arket | B4: 1-20 print' | C4: kan du finde print af numrene 1-20
A5: På arket | B5: 1-20 huller print' | C5: kan du finde print af numrene 1-20 med et antal manglende tal - vælg selv antal herunder
A8: Antal manglende tal | B8: 5

Sheet 1-100 print
A1: =RANK('1-100 data'!A2,'1-100 data'!$A$2:$J$11) -> 91 | B1: =RANK('1-100 data'!B2,'1-100 data'!$A$2:$J$11) -> 82 | C1: =RANK('1-100 data'!C2,'1-100 data'!$A$2:$J$11) -> 10 | D1: =RANK('1-100 data'!D2,'1-100 data'!$A$2:$J$11) -> 43 | E1: =RANK('1-100 data'!E2,'1-100 data'!$A$2:$J$11) -> 41 | F1: =RANK('1-100 data'!F2,'1-100 data'!$A$2:$J$11) -> 40 | G1: =RANK('1-100 data'!G2,'1-100 data'!$A$2:$J$11) -> 8 | H1: =RANK('1-100 data'!H2,'1-100 data'!$A$2:$J$11) -> 49 | I1: =RANK('1-100 data'!I2,'1-100 data'!$A$2:$J$11) -> 19 | J1: =RANK('1-100 data'!J2,'1-100 data'!$A$2:$J$11) -> 25
A2: =RANK('1-100 data'!A3,'1-100 data'!$A$2:$J$11) -> 100 | B2: =RANK('1-100 data'!B3,'1-100 data'!$A$2:$J$11) -> 14 | C2: =RANK('1-100 data'!C3,'1-100 data'!$A$2:$J$11) -> 1 | D2: =RANK('1-100 data'!D3,'1-100 data'!$A$2:$J$11) -> 62 | E2: =RANK('1-100 data'!E3,'1-100 data'!$A$2:$J$11) -> 50 | F2: =RANK('1-100 data'!F3,'1-100 data'!$A$2:$J$11) -> 47 | G2: =RANK('1-100 data'!G3,'1-100 data'!$A$2:$J$11) -> 63 | H2: =RANK('1-100 data'!H3,'1-100 data'!$A$2:$J$11) -> 26 | I2: =RANK('1-100 data'!I3,'1-100 data'!$A$2:$J$11) -> 66 | J2: =RANK('1-100 data'!J3,'1-100 data'!$A$2:$J$11) -> 58
A3: =RANK('1-100 data'!A4,'1-100 data'!$A$2:$J$11) -> 73 | B3: =RANK('1-100 data'!B4,'1-100 data'!$A$2:$J$11) -> 46 | C3: =RANK('1-100 data'!C4,'1-100 data'!$A$2:$J$11) -> 69 | D3: =RANK('1-100 data'!D4,'1-100 data'!$A$2:$J$11) -> 87 | E3: =RANK('1-100 data'!E4,'1-100 data'!$A$2:$J$11) -> 27 | F3: =RANK('1-100 data'!F4,'1-100 data'!$A$2:$J$11) -> 2 | G3: =RANK('1-100 data'!G4,'1-100 data'!$A$2:$J$11) -> 28 | H3: =RANK('1-100 data'!H4,'1-100 data'!$A$2:$J$11) -> 39 | I3: =RANK('1-100 data'!I4,'1-100 data'!$A$2:$J$11) -> 18 | J3: =RANK('1-100 data'!J4,'1-100 data'!$A$2:$J$11) -> 85
A4: =RANK('1-100 data'!A5,'1-100 data'!$A$2:$J$11) -> 60 | B4: =RANK('1-100 data'!B5,'1-100 data'!$A$2:$J$11) -> 71 | C4: =RANK('1-100 data'!C5,'1-100 data'!$A$2:$J$11) -> 59 | D4: =RANK('1-100 data'!D5,'1-100 data'!$A$2:$J$11) -> 83 | E4: =RANK('1-100 data'!E5,'1-100 data'!$A$2:$J$11) -> 84 | F4: =RANK('1-100 data'!F5,'1-100 data'!$A$2:$J$11) -> 99 | G4: =RANK('1-100 data'!G5,'1-100 data'!$A$2:$J$11) -> 31 | H4: =RANK('1-100 data'!H5,'1-100 data'!$A$2:$J$11) -> 75 | I4: =RANK('1-100 data'!I5,'1-100 data'!$A$2:$J$11) -> 53 | J4: =RANK('1-100 data'!J5,'1-100 data'!$A$2:$J$11) -> 97
A5: =RANK('1-100 data'!A6,'1-100 data'!$A$2:$J$11) -> 33 | B5: =RANK('1-100 data'!B6,'1-100 data'!$A$2:$J$11) -> 24 | C5: =RANK('1-100 data'!C6,'1-100 data'!$A$2:$J$11) -> 42 | D5: =RANK('1-100 data'!D6,'1-100 data'!$A$2:$J$11) -> 74 | E5: =RANK('1-100 data'!E6,'1-100 data'!$A$2:$J$11) -> 7 | F5: =RANK('1-100 data'!F6,'1-100 data'!$A$2:$J$11) -> 11 | G5: =RANK('1-100 data'!G6,'1-100 data'!$A$2:$J$11) -> 15 | H5: =RANK('1-100 data'!H6,'1-100 data'!$A$2:$J$11) -> 76 | I5: =RANK('1-100 data'!I6,'1-100 data'!$A$2:$J$11) -> 36 | J5: =RANK('1-100 data'!J6,'1-100 data'!$A$2:$J$11) -> 79
A6: =RANK('1-100 data'!A7,'1-100 data'!$A$2:$J$11) -> 17 | B6: =RANK('1-100 data'!B7,'1-100 data'!$A$2:$J$11) -> 35 | C6: =RANK('1-100 data'!C7,'1-100 data'!$A$2:$J$11) -> 22 | D6: =RANK('1-100 data'!D7,'1-100 data'!$A$2:$J$11) -> 95 | E6: =RANK('1-100 data'!E7,'1-100 data'!$A$2:$J$11) -> 80 | F6: =RANK('1-100 data'!F7,'1-100 data'!$A$2:$J$11) -> 13 | G6: =RANK('1-100 data'!G7,'1-100 data'!$A$2:$J$11) -> 16 | H6: =RANK('1-100 data'!H7,'1-100 data'!$A$2:$J$11) -> 3 | I6: =RANK('1-100 data'!I7,'1-100 data'!$A$2:$J$11) -> 9 | J6: =RANK('1-100 data'!J7,'1-100 data'!$A$2:$J$11) -> 98
A7: =RANK('1-100 data'!A8,'1-100 data'!$A$2:$J$11) -> 32 | B7: =RANK('1-100 data'!B8,'1-100 data'!$A$2:$J$11) -> 37 | C7: =RANK('1-100 data'!C8,'1-100 data'!$A$2:$J$11) -> 45 | D7: =RANK('1-100 data'!D8,'1-100 data'!$A$2:$J$11) -> 20 | E7: =RANK('1-100 data'!E8,'1-100 data'!$A$2:$J$11) -> 72 | F7: =RANK('1-100 data'!F8,'1-100 data'!$A$2:$J$11) -> 55 | G7: =RANK('1-100 data'!G8,'1-100 data'!$A$2:$J$11) -> 44 | H7: =RANK('1-100 data'!H8,'1-100 data'!$A$2:$J$11) -> 89 | I7: =RANK('1-100 data'!I8,'1-100 data'!$A$2:$J$11) -> 67 | J7: =RANK('1-100 data'!J8,'1-100 data'!$A$2:$J$11) -> 56
A8: =RANK('1-100 data'!A9,'1-100 data'!$A$2:$J$11) -> 64 | B8: =RANK('1-100 data'!B9,'1-100 data'!$A$2:$J$11) -> 70 | C8: =RANK('1-100 data'!C9,'1-100 data'!$A$2:$J$11) -> 29 | D8: =RANK('1-100 data'!D9,'1-100 data'!$A$2:$J$11) -> 93 | E8: =RANK('1-100 data'!E9,'1-100 data'!$A$2:$J$11) -> 52 | F8: =RANK('1-100 data'!F9,'1-100 data'!$A$2:$J$11) -> 68 | G8: =RANK('1-100 data'!G9,'1-100 data'!$A$2:$J$11) -> 5 | H8: =RANK('1-100 data'!H9,'1-100 data'!$A$2:$J$11) -> 51 | I8: =RANK('1-100 data'!I9,'1-100 data'!$A$2:$J$11) -> 86 | J8: =RANK('1-100 data'!J9,'1-100 data'!$A$2:$J$11) -> 12
A9: =RANK('1-100 data'!A10,'1-100 data'!$A$2:$J$11) -> 94 | B9: =RANK('1-100 data'!B10,'1-100 data'!$A$2:$J$11) -> 78 | C9: =RANK('1-100 data'!C10,'1-100 data'!$A$2:$J$11) -> 30 | D9: =RANK('1-100 data'!D10,'1-100 data'!$A$2:$J$11) -> 88 | E9: =RANK('1-100 data'!E10,'1-100 data'!$A$2:$J$11) -> 77 | F9: =RANK('1-100 data'!F10,'1-100 data'!$A$2:$J$11) -> 90 | G9: =RANK('1-100 data'!G10,'1-100 data'!$A$2:$J$11) -> 54 | H9: =RANK('1-100 data'!H10,'1-100 data'!$A$2:$J$11) -> 34 | I9: =RANK('1-100 data'!I10,'1-100 data'!$A$2:$J$11) -> 57 | J9: =RANK('1-100 data'!J10,'1-100 data'!$A$2:$J$11) -> 38
A10: =RANK('1-100 data'!A11,'1-100 data'!$A$2:$J$11) -> 48 | B10: =RANK('1-100 data'!B11,'1-100 data'!$A$2:$J$11) -> 21 | C10: =RANK('1-100 data'!C11,'1-100 data'!$A$2:$J$11) -> 81 | D10: =RANK('1-100 data'!D11,'1-100 data'!$A$2:$J$11) -> 6 | E10: =RANK('1-100 data'!E11,'1-100 data'!$A$2:$J$11) -> 23 | F10: =RANK('1-100 data'!F11,'1-100 data'!$A$2:$J$11) -> 61 | G10: =RANK('1-100 data'!G11,'1-100 data'!$A$2:$J$11) -> 96 | H10: =RANK('1-100 data'!H11,'1-100 data'!$A$2:$J$11) -> 4 | I10: =RANK('1-100 data'!I11,'1-100 data'!$A$2:$J$11) -> 65 | J10: =RANK('1-100 data'!J11,'1-100 data'!$A$2:$J$11) -> 92
A11: =RANK('1-100 data'!A13,'1-100 data'!$A$11:$J$22) -> 9 | B11: =RANK('1-100 data'!B13,'1-100 data'!$A$11:$J$22) -> 16 | C11: =RANK('1-100 data'!C13,'1-100 data'!$A$11:$J$22) -> 61 | D11: =RANK('1-100 data'!D13,'1-100 data'!$A$11:$J$22) -> 94 | E11: =RANK('1-100 data'!E13,'1-100 data'!$A$11:$J$22) -> 62 | F11: =RANK('1-100 data'!F13,'1-100 data'!$A$11:$J$22) -> 18 | G11: =RANK('1-100 data'!G13,'1-100 data'!$A$11:$J$22) -> 90 | H11: =RANK('1-100 data'!H13,'1-100 data'!$A$11:$J$22) -> 42 | I11: =RANK('1-100 data'!I13,'1-100 data'!$A$11:$J$22) -> 41 | J11: =RANK('1-100 data'!J13,'1-100 data'!$A$11:$J$22) -> 21
A12: =RANK('1-100 data'!A14,'1-100 data'!$A$11:$J$22) -> 11 | B12: =RANK('1-100 data'!B14,'1-100 data'!$A$11:$J$22) -> 83 | C12: =RANK('1-100 data'!C14,'1-100 data'!$A$11:$J$22) -> 66 | D12: =RANK('1-100 data'!D14,'1-100 data'!$A$11:$J$22) -> 104 | E12: =RANK('1-100 data'!E14,'1-100 data'!$A$11:$J$22) -> 76 | F12: =RANK('1-100 data'!F14,'1-100 data'!$A$11:$J$22) -> 15 | G12: =RANK('1-100 data'!G14,'1-100 data'!$A$11:$J$22) -> 77 | H12: =RANK('1-100 data'!H14,'1-100 data'!$A$11:$J$22) -> 22 | I12: =RANK('1-100 data'!I14,'1-100 data'!$A$11:$J$22) -> 69 | J12: =RANK('1-100 data'!J14,'1-100 data'!$A$11:$J$22) -> 40
A13: =RANK('1-100 data'!A15,'1-100 data'!$A$11:$J$22) -> 110 | B13: =RANK('1-100 data'!B15,'1-100 data'!$A$11:$J$22) -> 85 | C13: =RANK('1-100 data'!C15,'1-100 data'!$A$11:$J$22) -> 43 | D13: =RANK('1-100 data'!D15,'1-100 data'!$A$11:$J$22) -> 12 | E13: =RANK('1-100 data'!E15,'1-100 data'!$A$11:$J$22) -> 58 | F13: =RANK('1-100 data'!F15,'1-100 data'!$A$11:$J$22) -> 64 | G13: =RANK('1-100 data'!G15,'1-100 data'!$A$11:$J$22) -> 25 | H13: =RANK('1-100 data'!H15,'1-100 data'!$A$11:$J$22) -> 51 | I13: =RANK('1-100 data'!I15,'1-100 data'!$A$11:$J$22) -> 78 | J13: =RANK('1-100 data'!J15,'1-100 data'!$A$11:$J$22) -> 27
A14: =RANK('1-100 data'!A16,'1-100 data'!$A$11:$J$22) -> 80 | B14: =RANK('1-100 data'!B16,'1-100 data'!$A$11:$J$22) -> 34 | C14: =RANK('1-100 data'!C16,'1-100 data'!$A$11:$J$22) -> 96 | D14: =RANK('1-100 data'!D16,'1-100 data'!$A$11:$J$22) -> 99 | E14: =RANK('1-100 data'!E16,'1-100 data'!$A$11:$J$22) -> 28 | F14: =RANK('1-100 data'!F16,'1-100 data'!$A$11:$J$22) -> 86 | G14: =RANK('1-100 data'!G16,'1-100 data'!$A$11:$J$22) -> 102 | H14: =RANK('1-100 data'!H16,'1-100 data'!$A$11:$J$22) -> 7 | I14: =RANK('1-100 data'!I16,'1-100 data'!$A$11:$J$22) -> 109 | J14: =RANK('1-100 data'!J16,'1-100 data'!$A$11:$J$22) -> 63
A15: =RANK('1-100 data'!A17,'1-100 data'!$A$11:$J$22) -> 13 | B15: =RANK('1-100 data'!B17,'1-100 data'!$A$11:$J$22) -> 53 | C15: =RANK('1-100 data'!C17,'1-100 data'!$A$11:$J$22) -> 95 | D15: =RANK('1-100 data'!D17,'1-100 data'!$A$11:$J$22) -> 79 | E15: =RANK('1-100 data'!E17,'1-100 data'!$A$11:$J$22) -> 71 | F15: =RANK('1-100 data'!F17,'1-100 data'!$A$11:$J$22) -> 4 | G15: =RANK('1-100 data'!G17,'1-100 data'!$A$11:$J$22) -> 3 | H15: =RANK('1-100 data'!H17,'1-100 data'!$A$11:$J$22) -> 50 | I15: =RANK('1-100 data'!I17,'1-100 data'!$A$11:$J$22) -> 98 | J15: =RANK('1-100 data'!J17,'1-100 data'!$A$11:$J$22) -> 37
A16: =RANK('1-100 data'!A18,'1-100 data'!$A$11:$J$22) -> 23 | B16: =RANK('1-100 data'!B18,'1-100 data'!$A$11:$J$22) -> 44 | C16: =RANK('1-100 data'!C18,'1-100 data'!$A$11:$J$22) -> 39 | D16: =RANK('1-100 data'!D18,'1-100 data'!$A$11:$J$22) -> 20 | E16: =RANK('1-100 data'!E18,'1-100 data'!$A$11:$J$22) -> 68 | F16: =RANK('1-100 data'!F18,'1-100 data'!$A$11:$J$22) -> 52 | G16: =RANK('1-100 data'!G18,'1-100 data'!$A$11:$J$22) -> 54 | H16: =RANK('1-100 data'!H18,'1-100 data'!$A$11:$J$22) -> 1 | I16: =RANK('1-100 data'!I18,'1-100 data'!$A$11:$J$22) -> 17 | J16: =RANK('1-100 data'!J18,'1-100 data'!$A$11:$J$22) -> 106
A17: =RANK('1-100 data'!A19,'1-100 data'!$A$11:$J$22) -> 65 | B17: =RANK('1-100 data'!B19,'1-100 data'!$A$11:$J$22) -> 107 | C17: =RANK('1-100 data'!C19,'1-100 data'!$A$11:$J$22) -> 97 | D17: =RANK('1-100 data'!D19,'1-100 data'!$A$11:$J$22) -> 108 | E17: =RANK('1-100 data'!E19,'1-100 data'!$A$11:$J$22) -> 73 | F17: =RANK('1-100 data'!F19,'1-100 data'!$A$11:$J$22) -> 30 | G17: =RANK('1-100 data'!G19,'1-100 data'!$A$11:$J$22) -> 81 | H17: =RANK('1-100 data'!H19,'1-100 data'!$A$11:$J$22) -> 91 | I17: =RANK('1-100 data'!I19,'1-100 data'!$A$11:$J$22) -> 24 | J17: =RANK('1-100 data'!J19,'1-100 data'!$A$11:$J$22) -> 38
A18: =RANK('1-100 data'!A20,'1-100 data'!$A$11:$J$22) -> 49 | B18: =RANK('1-100 data'!B20,'1-100 data'!$A$11:$J$22) -> 59 | C18: =RANK('1-100 data'!C20,'1-100 data'!$A$11:$J$22) -> 101 | D18: =RANK('1-100 data'!D20,'1-100 data'!$A$11:$J$22) -> 57 | E18: =RANK('1-100 data'!E20,'1-100 data'!$A$11:$J$22) -> 56 | F18: =RANK('1-100 data'!F20,'1-100 data'!$A$11:$J$22) -> 14 | G18: =RANK('1-100 data'!G20,'1-100 data'!$A$11:$J$22) -> 36 | H18: =RANK('1-100 data'!H20,'1-100 data'!$A$11:$J$22) -> 26 | I18: =RANK('1-100 data'!I20,'1-100 data'!$A$11:$J$22) -> 6 | J18: =RANK('1-100 data'!J20,'1-100 data'!$A$11:$J$22) -> 33
A19: =RANK('1-100 data'!A21,'1-100 data'!$A$11:$J$22) -> 2 | B19: =RANK('1-100 data'!B21,'1-100 data'!$A$11:$J$22) -> 48 | C19: =RANK('1-100 data'!C21,'1-100 data'!$A$11:$J$22) -> 70 | D19: =RANK('1-100 data'!D21,'1-100 data'!$A$11:$J$22) -> 92 | E19: =RANK('1-100 data'!E21,'1-100 data'!$A$11:$J$22) -> 82 | F19: =RANK('1-100 data'!F21,'1-100 data'!$A$11:$J$22) -> 105 | G19: =RANK('1-100 data'!G21,'1-100 data'!$A$11:$J$22) -> 67 | H19: =RANK('1-100 data'!H21,'1-100 data'!$A$11:$J$22) -> 31 | I19: =RANK('1-100 data'!I21,'1-100 data'!$A$11:$J$22) -> 60 | J19: =RANK('1-100 data'!J21,'1-100 data'!$A$11:$J$22) -> 84
A20: =RANK('1-100 data'!A22,'1-100 data'!$A$11:$J$22) -> 45 | B20: =RANK('1-100 data'!B22,'1-100 data'!$A$11:$J$22) -> 75 | C20: =RANK('1-100 data'!C22,'1-100 data'!$A$11:$J$22) -> 89 | D20: =RANK('1-100 data'!D22,'1-100 data'!$A$11:$J$22) -> 47 | E20: =RANK('1-100 data'!E22,'1-100 data'!$A$11:$J$22) -> 10 | F20: =RANK('1-100 data'!F22,'1-100 data'!$A$11:$J$22) -> 19 | G20: =RANK('1-100 data'!G22,'1-100 data'!$A$11:$J$22) -> 87 | H20: =RANK('1-100 data'!H22,'1-100 data'!$A$11:$J$22) -> 46 | I20: =RANK('1-100 data'!I22,'1-100 data'!$A$11:$J$22) -> 35 | J20: =RANK('1-100 data'!J22,'1-100 data'!$A$11:$J$22) -> 93

Sheet 1-100 hul print
A1: =IF('1-100 data'!L13<=intro!$B$8,"",'1-100 data'!L2) -> 91 | B1: =IF('1-100 data'!M13<=intro!$B$8,"",'1-100 data'!M2) -> 82 | C1: =IF('1-100 data'!N13<=intro!$B$8,"",'1-100 data'!N2) -> 10 | D1: =IF('1-100 data'!O13<=intro!$B$8,"",'1-100 data'!O2) -> 43 | E1: =IF('1-100 data'!P13<=intro!$B$8,"",'1-100 data'!P2) -> 41 | F1: =IF('1-100 data'!Q13<=intro!$B$8,"",'1-100 data'!Q2) -> 40 | G1: =IF('1-100 data'!R13<=intro!$B$8,"",'1-100 data'!R2) -> 8 | H1: =IF('1-100 data'!S13<=intro!$B$8,"",'1-100 data'!S2) -> 49 | I1: =IF('1-100 data'!T13<=intro!$B$8,"",'1-100 data'!T2) -> 19 | J1: =IF('1-100 data'!U13<=intro!$B$8,"",'1-100 data'!U2) -> 25
A2: =IF('1-100 data'!L14<=intro!$B$8,"",'1-100 data'!L3) -> 100 | B2: =IF('1-100 data'!M14<=intro!$B$8,"",'1-100 data'!M3) -> 14 | C2: =IF('1-100 data'!N14<=intro!$B$8,"",'1-100 data'!N3) -> 1 | D2: =IF('1-100 data'!O14<=intro!$B$8,"",'1-100 data'!O3) -> 62 | E2: =IF('1-100 data'!P14<=intro!$B$8,"",'1-100 data'!P3) -> 50 | F2: =IF('1-100 data'!Q14<=intro!$B$8,"",'1-100 data'!Q3) -> 47 | G2: =IF('1-100 data'!R14<=intro!$B$8,"",'1-100 data'!R3) -> 63 | H2: =IF('1-100 data'!S14<=intro!$B$8,"",'1-100 data'!S3) -> 26 | I2: =IF('1-100 data'!T14<=intro!$B$8,"",'1-100 data'!T3) -> 66 | J2: =IF('1-100 data'!U14<=intro!$B$8,"",'1-100 data'!U3) -> 58
A3: =IF('1-100 data'!L15<=intro!$B$8,"",'1-100 data'!L4) -> 73 | B3: =IF('1-100 data'!M15<=intro!$B$8,"",'1-100 data'!M4) -> 46 | C3: =IF('1-100 data'!N15<=intro!$B$8,"",'1-100 data'!N4) -> 69 | D3: =IF('1-100 data'!O15<=intro!$B$8,"",'1-100 data'!O4) -> 87 | E3: =IF('1-100 data'!P15<=intro!$B$8,"",'1-100 data'!P4) -> 27 | F3: =IF('1-100 data'!Q15<=intro!$B$8,"",'1-100 data'!Q4) -> 2 | G3: =IF('1-100 data'!R15<=intro!$B$8,"",'1-100 data'!R4) -> 28 | H3: =IF('1-100 data'!S15<=intro!$B$8,"",'1-100 data'!S4) -> 39 | I3: =IF('1-100 data'!T15<=intro!$B$8,"",'1-100 data'!T4) -> 18 | J3: =IF('1-100 data'!U15<=intro!$B$8,"",'1-100 data'!U4) -> 85
A4: =IF('1-100 data'!L16<=intro!$B$8,"",'1-100 data'!L5) -> 60 | B4: =IF('1-100 data'!M16<=intro!$B$8,"",'1-100 data'!M5) -> 71 | C4: =IF('1-100 data'!N16<=intro!$B$8,"",'1-100 data'!N5) -> 59 | D4: =IF('1-100 data'!O16<=intro!$B$8,"",'1-100 data'!O5) -> 83 | E4: =IF('1-100 data'!P16<=intro!$B$8,"",'1-100 data'!P5) -> 84 | F4: =IF('1-100 data'!Q16<=intro!$B$8,"",'1-100 data'!Q5) -> 99 | G4: =IF('1-100 data'!R16<=intro!$B$8,"",'1-100 data'!R5) -> 31 | H4: =IF('1-100 data'!S16<=intro!$B$8,"",'1-100 data'!S5) -> 75 | I4: =IF('1-100 data'!T16<=intro!$B$8,"",'1-100 data'!T5) -> 53 | J4: =IF('1-100 data'!U16<=intro!$B$8,"",'1-100 data'!U5) -> 97
A5: =IF('1-100 data'!L17<=intro!$B$8,"",'1-100 data'!L6) -> 33 | B5: =IF('1-100 data'!M17<=intro!$B$8,"",'1-100 data'!M6) -> 24 | C5: =IF('1-100 data'!N17<=intro!$B$8,"",'1-100 data'!N6) -> 42 | D5: =IF('1-100 data'!O17<=intro!$B$8,"",'1-100 data'!O6) -> 74 | E5: =IF('1-100 data'!P17<=intro!$B$8,"",'1-100 data'!P6) -> 7 | F5: =IF('1-100 data'!Q17<=intro!$B$8,"",'1-100 data'!Q6) ->  | G5: =IF('1-100 data'!R17<=intro!$B$8,"",'1-100 data'!R6) ->  | H5: =IF('1-100 data'!S17<=intro!$B$8,"",'1-100 data'!S6) -> 76 | I5: =IF('1-100 data'!T17<=intro!$B$8,"",'1-100 data'!T6) -> 36 | J5: =IF('1-100 data'!U17<=intro!$B$8,"",'1-100 data'!U6) -> 79
A6: =IF('1-100 data'!L18<=intro!$B$8,"",'1-100 data'!L7) -> 17 | B6: =IF('1-100 data'!M18<=intro!$B$8,"",'1-100 data'!M7) -> 35 | C6: =IF('1-100 data'!N18<=intro!$B$8,"",'1-100 data'!N7) -> 22 | D6: =IF('1-100 data'!O18<=intro!$B$8,"",'1-100 data'!O7) -> 95 | E6: =IF('1-100 data'!P18<=intro!$B$8,"",'1-100 data'!P7) -> 80 | F6: =IF('1-100 data'!Q18<=intro!$B$8,"",'1-100 data'!Q7) -> 13 | G6: =IF('1-100 data'!R18<=intro!$B$8,"",'1-100 data'!R7) -> 16 | H6: =IF('1-100 data'!S18<=intro!$B$8,"",'1-100 data'!S7) ->  | I6: =IF('1-100 data'!T18<=intro!$B$8,"",'1-100 data'!T7) -> 9 | J6: =IF('1-100 data'!U18<=intro!$B$8,"",'1-100 data'!U7) -> 98
A7: =IF('1-100 data'!L19<=intro!$B$8,"",'1-100 data'!L8) -> 32 | B7: =IF('1-100 data'!M19<=intro!$B$8,"",'1-100 data'!M8) -> 37 | C7: =IF('1-100 data'!N19<=intro!$B$8,"",'1-100 data'!N8) -> 45 | D7: =IF('1-100 data'!O19<=intro!$B$8,"",'1-100 data'!O8) -> 20 | E7: =IF('1-100 data'!P19<=intro!$B$8,"",'1-100 data'!P8) -> 72 | F7: =IF('1-100 data'!Q19<=intro!$B$8,"",'1-100 data'!Q8) -> 55 | G7: =IF('1-100 data'!R19<=intro!$B$8,"",'1-100 data'!R8) -> 44 | H7: =IF('1-100 data'!S19<=intro!$B$8,"",'1-100 data'!S8) -> 89 | I7: =IF('1-100 data'!T19<=intro!$B$8,"",'1-100 data'!T8) -> 67 | J7: =IF('1-100 data'!U19<=intro!$B$8,"",'1-100 data'!U8) -> 56
A8: =IF('1-100 data'!L20<=intro!$B$8,"",'1-100 data'!L9) -> 64 | B8: =IF('1-100 data'!M20<=intro!$B$8,"",'1-100 data'!M9) -> 70 | C8: =IF('1-100 data'!N20<=intro!$B$8,"",'1-100 data'!N9) -> 29 | D8: =IF('1-100 data'!O20<=intro!$B$8,"",'1-100 data'!O9) -> 93 | E8: =IF('1-100 data'!P20<=intro!$B$8,"",'1-100 data'!P9) -> 52 | F8: =IF('1-100 data'!Q20<=intro!$B$8,"",'1-100 data'!Q9) -> 68 | G8: =IF('1-100 data'!R20<=intro!$B$8,"",'1-100 data'!R9) -> 5 | H8: =IF('1-100 data'!S20<=intro!$B$8,"",'1-100 data'!S9) -> 51 | I8: =IF('1-100 data'!T20<=intro!$B$8,"",'1-100 data'!T9) ->  | J8: =IF('1-100 data'!U20<=intro!$B$8,"",'1-100 data'!U9) -> 12
A9: =IF('1-100 data'!L21<=intro!$B$8,"",'1-100 data'!L10) ->  | B9: =IF('1-100 data'!M21<=intro!$B$8,"",'1-100 data'!M10) -> 78 | C9: =IF('1-100 data'!N21<=intro!$B$8,"",'1-100 data'!N10) -> 30 | D9: =IF('1-100 data'!O21<=intro!$B$8,"",'1-100 data'!O10) -> 88 | E9: =IF('1-100 data'!P21<=intro!$B$8,"",'1-100 data'!P10) -> 77 | F9: =IF('1-100 data'!Q21<=intro!$B$8,"",'1-100 data'!Q10) -> 90 | G9: =IF('1-100 data'!R21<=intro!$B$8,"",'1-100 data'!R10) -> 54 | H9: =IF('1-100 data'!S21<=intro!$B$8,"",'1-100 data'!S10) -> 34 | I9: =IF('1-100 data'!T21<=intro!$B$8,"",'1-100 data'!T10) -> 57 | J9: =IF('1-100 data'!U21<=intro!$B$8,"",'1-100 data'!U10) -> 38
A10: =IF('1-100 data'!L22<=intro!$B$8,"",'1-100 data'!L11) -> 48 | B10: =IF('1-100 data'!M22<=intro!$B$8,"",'1-100 data'!M11) -> 21 | C10: =IF('1-100 data'!N22<=intro!$B$8,"",'1-100 data'!N11) -> 81 | D10: =IF('1-100 data'!O22<=intro!$B$8,"",'1-100 data'!O11) -> 6 | E10: =IF('1-100 data'!P22<=intro!$B$8,"",'1-100 data'!P11) -> 23 | F10: =IF('1-100 data'!Q22<=intro!$B$8,"",'1-100 data'!Q11) -> 61 | G10: =IF('1-100 data'!R22<=intro!$B$8,"",'1-100 data'!R11) -> 96 | H10: =IF('1-100 data'!S22<=intro!$B$8,"",'1-100 data'!S11) -> 4 | I10: =IF('1-100 data'!T22<=intro!$B$8,"",'1-100 data'!T11) -> 65 | J10: =IF('1-100 data'!U22<=intro!$B$8,"",'1-100 data'!U11) -> 92
A11: =IF('1-100 data'!L2<=intro!$B$8,"",'1-100 data'!L13) -> 7 | B11: =IF('1-100 data'!M2<=intro!$B$8,"",'1-100 data'!M13) -> 14 | C11: =IF('1-100 data'!N2<=intro!$B$8,"",'1-100 data'!N13) -> 56 | D11: =IF('1-100 data'!O2<=intro!$B$8,"",'1-100 data'!O13) -> 86 | E11: =IF('1-100 data'!P2<=intro!$B$8,"",'1-100 data'!P13) -> 57 | F11: =IF('1-100 data'!Q2<=intro!$B$8,"",'1-100 data'!Q13) -> 16 | G11: =IF('1-100 data'!R2<=intro!$B$8,"",'1-100 data'!R13) -> 82 | H11: =IF('1-100 data'!S2<=intro!$B$8,"",'1-100 data'!S13) -> 38 | I11: =IF('1-100 data'!T2<=intro!$B$8,"",'1-100 data'!T13) -> 37 | J11: =IF('1-100 data'!U2<=intro!$B$8,"",'1-100 data'!U13) -> 19
A12: =IF('1-100 data'!L3<=intro!$B$8,"",'1-100 data'!L14) -> 9 | B12: =IF('1-100 data'!M3<=intro!$B$8,"",'1-100 data'!M14) -> 76 | C12: =IF('1-100 data'!N3<=intro!$B$8,"",'1-100 data'!N14) ->  | D12: =IF('1-100 data'!O3<=intro!$B$8,"",'1-100 data'!O14) -> 94 | E12: =IF('1-100 data'!P3<=intro!$B$8,"",'1-100 data'!P14) -> 69 | F12: =IF('1-100 data'!Q3<=intro!$B$8,"",'1-100 data'!Q14) -> 13 | G12: =IF('1-100 data'!R3<=intro!$B$8,"",'1-100 data'!R14) -> 70 | H12: =IF('1-100 data'!S3<=intro!$B$8,"",'1-100 data'!S14) -> 20 | I12: =IF('1-100 data'!T3<=intro!$B$8,"",'1-100 data'!T14) -> 64 | J12: =IF('1-100 data'!U3<=intro!$B$8,"",'1-100 data'!U14) -> 36
A13: =IF('1-100 data'!L4<=intro!$B$8,"",'1-100 data'!L15) -> 100 | B13: =IF('1-100 data'!M4<=intro!$B$8,"",'1-100 data'!M15) -> 78 | C13: =IF('1-100 data'!N4<=intro!$B$8,"",'1-100 data'!N15) -> 39 | D13: =IF('1-100 data'!O4<=intro!$B$8,"",'1-100 data'!O15) -> 10 | E13: =IF('1-100 data'!P4<=intro!$B$8,"",'1-100 data'!P15) -> 53 | F13: =IF('1-100 data'!Q4<=intro!$B$8,"",'1-100 data'!Q15) ->  | G13: =IF('1-100 data'!R4<=intro!$B$8,"",'1-100 data'!R15) -> 23 | H13: =IF('1-100 data'!S4<=intro!$B$8,"",'1-100 data'!S15) -> 47 | I13: =IF('1-100 data'!T4<=intro!$B$8,"",'1-100 data'!T15) -> 71 | J13: =IF('1-100 data'!U4<=intro!$B$8,"",'1-100 data'!U15) -> 25
A14: =IF('1-100 data'!L5<=intro!$B$8,"",'1-100 data'!L16) -> 73 | B14: =IF('1-100 data'!M5<=intro!$B$8,"",'1-100 data'!M16) -> 30 | C14: =IF('1-100 data'!N5<=intro!$B$8,"",'1-100 data'!N16) -> 88 | D14: =IF('1-100 data'!O5<=intro!$B$8,"",'1-100 data'!O16) -> 91 | E14: =IF('1-100 data'!P5<=intro!$B$8,"",'1-100 data'!P16) -> 26 | F14: =IF('1-100 data'!Q5<=intro!$B$8,"",'1-100 data'!Q16) -> 79 | G14: =IF('1-100 data'!R5<=intro!$B$8,"",'1-100 data'!R16) -> 93 | H14: =IF('1-100 data'!S5<=intro!$B$8,"",'1-100 data'!S16) -> 6 | I14: =IF('1-100 data'!T5<=intro!$B$8,"",'1-100 data'!T16) -> 99 | J14: =IF('1-100 data'!U5<=intro!$B$8,"",'1-100 data'!U16) -> 58
A15: =IF('1-100 data'!L6<=intro!$B$8,"",'1-100 data'!L17) -> 11 | B15: =IF('1-100 data'!M6<=intro!$B$8,"",'1-100 data'!M17) -> 49 | C15: =IF('1-100 data'!N6<=intro!$B$8,"",'1-100 data'!N17) -> 87 | D15: =IF('1-100 data'!O6<=intro!$B$8,"",'1-100 data'!O17) -> 72 | E15: =IF('1-100 data'!P6<=intro!$B$8,"",'1-100 data'!P17) -> 66 | F15: =IF('1-100 data'!Q6<=intro!$B$8,"",'1-100 data'!Q17) -> 4 | G15: =IF('1-100 data'!R6<=intro!$B$8,"",'1-100 data'!R17) -> 3 | H15: =IF('1-100 data'!S6<=intro!$B$8,"",'1-100 data'!S17) -> 46 | I15: =IF('1-100 data'!T6<=intro!$B$8,"",'1-100 data'!T17) -> 90 | J15: =IF('1-100 data'!U6<=intro!$B$8,"",'1-100 data'!U17) -> 33
A16: =IF('1-100 data'!L7<=intro!$B$8,"",'1-100 data'!L18) -> 21 | B16: =IF('1-100 data'!M7<=intro!$B$8,"",'1-100 data'!M18) -> 40 | C16: =IF('1-100 data'!N7<=intro!$B$8,"",'1-100 data'!N18) -> 35 | D16: =IF('1-100 data'!O7<=intro!$B$8,"",'1-100 data'!O18) -> 18 | E16: =IF('1-100 data'!P7<=intro!$B$8,"",'1-100 data'!P18) -> 63 | F16: =IF('1-100 data'!Q7<=intro!$B$8,"",'1-100 data'!Q18) -> 48 | G16: =IF('1-100 data'!R7<=intro!$B$8,"",'1-100 data'!R18) -> 50 | H16: =IF('1-100 data'!S7<=intro!$B$8,"",'1-100 data'!S18) ->  | I16: =IF('1-100 data'!T7<=intro!$B$8,"",'1-100 data'!T18) -> 15 | J16: =IF('1-100 data'!U7<=intro!$B$8,"",'1-100 data'!U18) -> 96
A17: =IF('1-100 data'!L8<=intro!$B$8,"",'1-100 data'!L19) -> 60 | B17: =IF('1-100 data'!M8<=intro!$B$8,"",'1-100 data'!M19) -> 97 | C17: =IF('1-100 data'!N8<=intro!$B$8,"",'1-100 data'!N19) -> 89 | D17: =IF('1-100 data'!O8<=intro!$B$8,"",'1-100 data'!O19) -> 98 | E17: =IF('1-100 data'!P8<=intro!$B$8,"",'1-100 data'!P19) -> 67 | F17: =IF('1-100 data'!Q8<=intro!$B$8,"",'1-100 data'!Q19) -> 27 | G17: =IF('1-100 data'!R8<=intro!$B$8,"",'1-100 data'!R19) -> 74 | H17: =IF('1-100 data'!S8<=intro!$B$8,"",'1-100 data'!S19) -> 83 | I17: =IF('1-100 data'!T8<=intro!$B$8,"",'1-100 data'!T19) -> 22 | J17: =IF('1-100 data'!U8<=intro!$B$8,"",'1-100 data'!U19) -> 34
A18: =IF('1-100 data'!L9<=intro!$B$8,"",'1-100 data'!L20) -> 45 | B18: =IF('1-100 data'!M9<=intro!$B$8,"",'1-100 data'!M20) -> 54 | C18: =IF('1-100 data'!N9<=intro!$B$8,"",'1-100 data'!N20) -> 92 | D18: =IF('1-100 data'!O9<=intro!$B$8,"",'1-100 data'!O20) -> 52 | E18: =IF('1-100 data'!P9<=intro!$B$8,"",'1-100 data'!P20) -> 51 | F18: =IF('1-100 data'!Q9<=intro!$B$8,"",'1-100 data'!Q20) -> 12 | G18: =IF('1-100 data'!R9<=intro!$B$8,"",'1-100 data'!R20) ->  | H18: =IF('1-100 data'!S9<=intro!$B$8,"",'1-100 data'!S20) -> 24 | I18: =IF('1-100 data'!T9<=intro!$B$8,"",'1-100 data'!T20) -> 5 | J18: =IF('1-100 data'!U9<=intro!$B$8,"",'1-100 data'!U20) -> 29
A19: =IF('1-100 data'!L10<=intro!$B$8,"",'1-100 data'!L21) -> 2 | B19: =IF('1-100 data'!M10<=intro!$B$8,"",'1-100 data'!M21) -> 44 | C19: =IF('1-100 data'!N10<=intro!$B$8,"",'1-100 data'!N21) -> 65 | D19: =IF('1-100 data'!O10<=intro!$B$8,"",'1-100 data'!O21) -> 84 | E19: =IF('1-100 data'!P10<=intro!$B$8,"",'1-100 data'!P21) -> 75 | F19: =IF('1-100 data'!Q10<=intro!$B$8,"",'1-100 data'!Q21) -> 95 | G19: =IF('1-100 data'!R10<=intro!$B$8,"",'1-100 data'!R21) -> 62 | H19: =IF('1-100 data'!S10<=intro!$B$8,"",'1-100 data'!S21) -> 28 | I19: =IF('1-100 data'!T10<=intro!$B$8,"",'1-100 data'!T21) -> 55 | J19: =IF('1-100 data'!U10<=intro!$B$8,"",'1-100 data'!U21) -> 77
A20: =IF('1-100 data'!L11<=intro!$B$8,"",'1-100 data'!L22) -> 41 | B20: =IF('1-100 data'!M11<=intro!$B$8,"",'1-100 data'!M22) -> 68 | C20: =IF('1-100 data'!N11<=intro!$B$8,"",'1-100 data'!N22) -> 81 | D20: =IF('1-100 data'!O11<=intro!$B$8,"",'1-100 data'!O22) -> 43 | E20: =IF('1-100 data'!P11<=intro!$B$8,"",'1-100 data'!P22) -> 8 | F20: =IF('1-100 data'!Q11<=intro!$B$8,"",'1-100 data'!Q22) -> 17 | G20: =IF('1-100 data'!R11<=intro!$B$8,"",'1-100 data'!R22) -> 80 | H20: =IF('1-100 data'!S11<=intro!$B$8,"",'1-100 data'!S22) ->  | I20: =IF('1-100 data'!T11<=intro!$B$8,"",'1-100 data'!T22) -> 31 | J20: =IF('1-100 data'!U11<=intro!$B$8,"",'1-100 data'!U22) -> 85

Sheet 1-20 print
A1: ='1-20 data'!F2 -> 20 | B1: ='1-20 data'!G2 -> 16 | C1: ='1-20 data'!H2 -> 8 | D1: ='1-20 data'!I2 -> 14
A2: ='1-20 data'!F3 -> 5 | B2: ='1-20 data'!G3 -> 3 | C2: ='1-20 data'!H3 -> 17 | D2: ='1-20 data'!I3 -> 9
A3: ='1-20 data'!F4 -> 7 | B3: ='1-20 data'!G4 -> 13 | C3: ='1-20 data'!H4 -> 2 | D3: ='1-20 data'!I4 -> 19
A4: ='1-20 data'!F5 -> 4 | B4: ='1-20 data'!G5 -> 1 | C4: ='1-20 data'!H5 -> 15 | D4: ='1-20 data'!I5 -> 11
A5: ='1-20 data'!F6 -> 12 | B5: ='1-20 data'!G6 -> 10 | C5: ='1-20 data'!H6 -> 6 | D5: ='1-20 data'!I6 -> 18
A7: ='1-20 data'!F8 -> 20 | B7: ='1-20 data'!G8 -> 6 | C7: ='1-20 data'!H8 -> 9 | D7: ='1-20 data'!I8 -> 3
A8: ='1-20 data'!F9 -> 2 | B8: ='1-20 data'!G9 -> 5 | C8: ='1-20 data'!H9 -> 12 | D8: ='1-20 data'!I9 -> 8
A9: ='1-20 data'!F10 -> 1 | B9: ='1-20 data'!G10 -> 15 | C9: ='1-20 data'!H10 -> 13 | D9: ='1-20 data'!I10 -> 7
A10: ='1-20 data'!F11 -> 4 | B10: ='1-20 data'!G11 -> 10 | C10: ='1-20 data'!H11 -> 11 | D10: ='1-20 data'!I11 -> 18
A11: ='1-20 data'!F12 -> 19 | B11: ='1-20 data'!G12 -> 14 | C11: ='1-20 data'!H12 -> 16 | D11: ='1-20 data'!I12 -> 17

Sheet 1-20 huller print
A1: =IF('1-20 data'!F8<=intro!$B$8,"",'1-20 data'!F2) -> 20 | B1: =IF('1-20 data'!G8<=intro!$B$8,"",'1-20 data'!G2) -> 16 | C1: =IF('1-20 data'!H8<=intro!$B$8,"",'1-20 data'!H2) -> 8 | D1: =IF('1-20 data'!I8<=intro!$B$8,"",'1-20 data'!I2) -> 
A2: =IF('1-20 data'!F9<=intro!$B$8,"",'1-20 data'!F3) ->  | B2: =IF('1-20 data'!G9<=intro!$B$8,"",'1-20 data'!G3) ->  | C2: =IF('1-20 data'!H9<=intro!$B$8,"",'1-20 data'!H3) -> 17 | D2: =IF('1-20 data'!I9<=intro!$B$8,"",'1-20 data'!I3) -> 9
A3: =IF('1-20 data'!F10<=intro!$B$8,"",'1-20 data'!F4) ->  | B3: =IF('1-20 data'!G10<=intro!$B$8,"",'1-20 data'!G4) -> 13 | C3: =IF('1-20 data'!H10<=intro!$B$8,"",'1-20 data'!H4) -> 2 | D3: =IF('1-20 data'!I10<=intro!$B$8,"",'1-20 data'!I4) -> 19
A4: =IF('1-20 data'!F11<=intro!$B$8,"",'1-20 data'!F5) ->  | B4: =IF('1-20 data'!G11<=intro!$B$8,"",'1-20 data'!G5) -> 1 | C4: =IF('1-20 data'!H11<=intro!$B$8,"",'1-20 data'!H5) -> 15 | D4: =IF('1-20 data'!I11<=intro!$B$8,"",'1-20 data'!I5) -> 11
A5: =IF('1-20 data'!F12<=intro!$B$8,"",'1-20 data'!F6) -> 12 | B5: =IF('1-20 data'!G12<=intro!$B$8,"",'1-20 data'!G6) -> 10 | C5: =IF('1-20 data'!H12<=intro!$B$8,"",'1-20 data'!H6) -> 6 | D5: =IF('1-20 data'!I12<=intro!$B$8,"",'1-20 data'!I6) -> 18
A7: =IF('1-20 data'!F2<=intro!$B$8,"",'1-20 data'!F8) -> 20 | B7: =IF('1-20 data'!G2<=intro!$B$8,"",'1-20 data'!G8) -> 6 | C7: =IF('1-20 data'!H2<=intro!$B$8,"",'1-20 data'!H8) -> 9 | D7: =IF('1-20 data'!I2<=intro!$B$8,"",'1-20 data'!I8) -> 3
A8: =IF('1-20 data'!F3<=intro!$B$8,"",'1-20 data'!F9) ->  | B8: =IF('1-20 data'!G3<=intro!$B$8,"",'1-20 data'!G9) ->  | C8: =IF('1-20 data'!H3<=intro!$B$8,"",'1-20 data'!H9) -> 12 | D8: =IF('1-20 data'!I3<=intro!$B$8,"",'1-20 data'!I9) -> 8
A9: =IF('1-20 data'!F4<=intro!$B$8,"",'1-20 data'!F10) -> 1 | B9: =IF('1-20 data'!G4<=intro!$B$8,"",'1-20 data'!G10) -> 15 | C9: =IF('1-20 data'!H4<=intro!$B$8,"",'1-20 data'!H10) ->  | D9: =IF('1-20 data'!I4<=intro!$B$8,"",'1-20 data'!I10) -> 7
A10: =IF('1-20 data'!F5<=intro!$B$8,"",'1-20 data'!F11) ->  | B10: =IF('1-20 data'!G5<=intro!$B$8,"",'1-20 data'!G11) ->  | C10: =IF('1-20 data'!H5<=intro!$B$8,"",'1-20 data'!H11) -> 11 | D10: =IF('1-20 data'!I5<=intro!$B$8,"",'1-20 data'!I11) -> 18
A11: =IF('1-20 data'!F6<=intro!$B$8,"",'1-20 data'!F12) -> 19 | B11: =IF('1-20 data'!G6<=intro!$B$8,"",'1-20 data'!G12) -> 14 | C11: =IF('1-20 data'!H6<=intro!$B$8,"",'1-20 data'!H12) -> 16 | D11: =IF('1-20 data'!I6<=intro!$B$8,"",'1-20 data'!I12) -> 17

Sheet 1-100 data
A2: =RAND() -> 0.09336365787 | B2: 0.2015610028 | C2: 0.8720875848 | D2: 0.5418333957 | E2: 0.5791776095 | F2: 0.5812370147 | G2: 0.9181520865 | H2: 0.484083571 | I2: 0.7911033385 | J2: 0.7102461183 | L2: =RANK(A2,$A$2:$J$11) -> 91 | M2: =RANK(B2,$A$2:$J$11) -> 82 | N2: 10 | O2: 43 | P2: 41 | Q2: 40 | R2: 8 | S2: 49 | T2: 19 | U2: 25
A3: 0.00947919661 | B3: 0.8177538024 | C3: 0.9990660518 | D3: 0.3569000825 | E3: 0.4797762046 | F3: 0.5266482404 | G3: 0.3567072014 | H3: 0.7004679315 | I3: 0.3476609421 | J3: 0.3807848382 | L3: =RANK(A3,$A$2:$J$11) -> 100 | M3: 14 | N3: 1 | O3: 62 | P3: 50 | Q3: 47 | R3: 63 | S3: 26 | T3: 66 | U3: 58
A4: 0.2473939435 | B4: 0.5281419443 | C4: 0.2825025119 | D4: 0.128562002 | E4: 0.6812864732 | F4: 0.981219205 | G4: 0.6587193611 | H4: 0.587172671 | I4: 0.7974896043 | J4: 0.1326232854 | L4: 73 | M4: 46 | N4: 69 | O4: 87 | P4: 27 | Q4: 2 | R4: 28 | S4: 39 | T4: 18 | U4: 85
A5: 0.3714232819 | B5: 0.2562612365 | C5: 0.3717226855 | D5: 0.1794990206 | E5: 0.153287191 | F5: 0.01785761087 | G5: 0.6408112334 | H5: 0.231786979 | I5: 0.4206151967 | J5: 0.04082937753 | L5: 60 | M5: 71 | N5: 59 | O5: 83 | P5: 84 | Q5: 99 | R5: 31 | S5: 75 | T5: 53 | U5: 97
A6: 0.6312336413 | B6: 0.7145712444 | C6: 0.5632919441 | D6: 0.24700986 | E6: 0.9208897499 | F6: 0.8663939115 | G6: 0.8115226275 | H6: 0.2252552034 | I6: 0.5980396244 | J6: 0.2165527105 | L6: 33 | M6: 24 | N6: 42 | O6: 74 | P6: 7 | Q6: 11 | R6: 15 | S6: 76 | T6: 36 | U6: 79
A7: 0.8030061253 | B7: 0.6234697547 | C7: 0.7390542291 | D7: 0.06425544483 | E7: 0.2159083568 | F7: 0.8289763287 | G7: 0.8099092601 | H7: 0.9786190821 | I7: 0.8749272579 | J7: 0.01854151758 | L7: 17 | M7: 35 | N7: 22 | O7: 95 | P7: 80 | Q7: 13 | R7: 16 | S7: 3 | T7: 9 | U7: 98
A8: 0.6372391721 | B8: 0.5963479673 | C8: 0.5381857999 | D8: 0.790283688 | E8: 0.255468286 | F8: 0.3913734913 | G8: 0.5412502272 | H8: 0.1032536427 | I8: 0.3241270361 | J8: 0.3860516408 | L8: 32 | M8: 37 | N8: 45 | O8: 20 | P8: 72 | Q8: 55 | R8: 44 | S8: 89 | T8: 67 | U8: 56
A9: 0.3530345485 | B9: 0.2599133925 | C9: 0.653461344 | D9: 0.07591837319 | E9: 0.4666237978 | F9: 0.2834909354 | G9: 0.9679916872 | H9: 0.4737091837 | I9: 0.1324245168 | J9: 0.8473574815 | L9: 64 | M9: 70 | N9: 29 | O9: 93 | P9: 52 | Q9: 68 | R9: 5 | S9: 51 | T9: 86 | U9: 12
A10: 0.07482389882 | B10: 0.2172238602 | C10: 0.6471898405 | D10: 0.1277912365 | E10: 0.2230171886 | F10: 0.09374839958 | G10: 0.3952484989 | H10: 0.6253304577 | I10: 0.3839564503 | J10: 0.5893439187 | L10: 94 | M10: 78 | N10: 30 | O10: 88 | P10: 77 | Q10: 90 | R10: 54 | S10: 34 | T10: 57 | U10: 38
A11: 0.4974681976 | B11: 0.7618168467 | C11: 0.2074797699 | D11: 0.9538361009 | E11: 0.7358937132 | F11: 0.3600698528 | G11: 0.04928611666 | H11: 0.9761957237 | I11: 0.3507779752 | J11: 0.07840727982 | L11: 48 | M11: 21 | N11: 81 | O11: 6 | P11: 23 | Q11: 61 | R11: 96 | S11: 4 | T11: 65 | U11: 92
A13: =RAND() -> 0.9388930196 | B13: 0.8552069583 | C13: 0.4315713723 | D13: 0.13010117 | E13: 0.4180872486 | F13: 0.8331531661 | G13: 0.1978442739 | H13: 0.6349476822 | I13: 0.6482896144 | J13: 0.8126028991 | L13: =RANK(A13,$A$13:$J$22) -> 7 | M13: =RANK(B13,$A$13:$J$22) -> 14 | N13: 56 | O13: 86 | P13: 57 | Q13: 16 | R13: 82 | S13: 38 | T13: 37 | U13: 19
A14: 0.9355150314 | B14: 0.278531966 | C14: 0.3950421323 | D14: 0.04793878069 | E14: 0.3241646254 | F14: 0.8864667752 | G14: 0.3168284745 | H14: 0.7961194512 | I14: 0.3834836774 | J14: 0.6494837229 | L14: =RANK(A14,$A$13:$J$22) -> 9 | M14: 76 | N14: 61 | O14: 94 | P14: 69 | Q14: 13 | R14: 70 | S14: 20 | T14: 64 | U14: 36
A15: 0.007170167239 | B15: 0.2486708103 | C15: 0.6257621547 | D15: 0.9143544784 | E15: 0.4634172783 | F15: 0.4087032308 | G15: 0.7795626659 | H15: 0.5233652956 | I15: 0.2967717114 | J15: 0.7747578556 | L15: 100 | M15: 78 | N15: 39 | O15: 10 | P15: 53 | Q15: 59 | R15: 23 | S15: 47 | T15: 71 | U15: 25
A16: 0.2937638797 | B16: 0.7204243334 | C16: 0.1062143384 | D16: 0.08089844358 | E16: 0.7643851384 | F16: 0.2319027403 | G16: 0.0494065567 | H16: 0.9539070476 | I16: 0.008984266663 | J16: 0.4162444184 | L16: 73 | M16: 30 | N16: 88 | O16: 91 | P16: 26 | Q16: 79 | R16: 93 | S16: 6 | T16: 99 | U16: 58
A17: 0.9043861534 | B17: 0.5045294957 | C17: 0.1211410575 | D17: 0.2949663128 | E17: 0.3620897722 | F17: 0.9817592785 | G17: 0.9832306868 | H17: 0.5552318991 | I17: 0.08273608739 | J17: 0.6665233774 | L17: 11 | M17: 49 | N17: 87 | O17: 72 | P17: 66 | Q17: 4 | R17: 3 | S17: 46 | T17: 90 | U17: 33
A18: 0.7903245985 | B18: 0.6175003357 | C18: 0.6502583081 | D18: 0.8135104536 | E18: 0.3835255827 | F18: 0.5198219122 | G18: 0.5034924229 | H18: 0.9889687503 | I18: 0.8395802178 | J18: 0.03929883817 | L18: 21 | M18: 40 | N18: 35 | O18: 18 | P18: 63 | Q18: 48 | R18: 50 | S18: 1 | T18: 15 | U18: 96
A19: 0.3957777864 | B19: 0.02744725753 | C19: 0.08317509137 | D19: 0.01661307579 | E19: 0.352708476 | F19: 0.7558474984 | G19: 0.2845490311 | H19: 0.1624186304 | I19: 0.7881296435 | J19: 0.6611376337 | L19: 60 | M19: 97 | N19: 89 | O19: 98 | P19: 67 | Q19: 27 | R19: 74 | S19: 83 | T19: 22 | U19: 34
A20: 0.5574683235 | B20: 0.4614599178 | C20: 0.07272795761 | D20: 0.4797691381 | E20: 0.4820497913 | F20: 0.8900959714 | G20: 0.6839507924 | H20: 0.7779535928 | I20: 0.9710917462 | J20: 0.7292480097 | L20: 45 | M20: 54 | N20: 92 | O20: 52 | P20: 51 | Q20: 12 | R20: 32 | S20: 24 | T20: 5 | U20: 29
A21: 0.9837779887 | B21: 0.5715683606 | C21: 0.3810511173 | D21: 0.1495816157 | E21: 0.279716495 | F21: 0.03942507524 | G21: 0.3871683471 | H21: 0.7552644782 | I21: 0.4529047237 | J21: 0.2759699794 | L21: 2 | M21: 44 | N21: 65 | O21: 84 | P21: 75 | Q21: 95 | R21: 62 | S21: 28 | T21: 55 | U21: 77
A22: 0.6099471133 | B22: 0.3364613597 | C22: 0.1997381841 | D22: 0.5818509673 | E22: 0.9379590717 | F22: 0.826880242 | G22: 0.2160149234 | H22: 0.6029884725 | I22: 0.6965545007 | J22: 0.1482655209 | L22: 41 | M22: 68 | N22: 81 | O22: 43 | P22: 8 | Q22: 17 | R22: 80 | S22: 42 | T22: 31 | U22: 85

Sheet 1-20 data
A2: =RAND() -> 0.04293332532 | B2: 0.1352015877 | C2: 0.6307576368 | D2: 0.3058547679 | F2: =RANK(A2,$A$2:$D$6) -> 20 | G2: =RANK(B2,$A$2:$D$6) -> 16 | H2: 8 | I2: 14
A3: 0.8370864653 | B3: 0.9283423365 | C3: 0.07681197778 | D3: 0.6286963984 | F3: =RANK(A3,$A$2:$D$6) -> 5 | G3: 3 | H3: 17 | I3: 9
A4: 0.6408938174 | B4: 0.3271700027 | C4: 0.9822785553 | D4: 0.04970585069 | F4: 7 | G4: 13 | H4: 2 | I4: 19
A5: 0.865590634 | B5: 0.9902423251 | C5: 0.2100588426 | D5: 0.4520661748 | F5: 4 | G5: 1 | H5: 15 | I5: 11
A6: 0.3612508734 | B6: 0.4932216796 | C6: 0.6807042224 | D6: 0.06016250997 | F6: 12 | G6: 10 | H6: 6 | I6: 18
A8: =RAND() -> 0.01488132507 | B8: 0.5827860154 | C8: 0.4484973971 | D8: 0.8618617745 | F8: =RANK(A8,$A$8:$D$12) -> 20 | G8: =RANK(B8,$A$8:$D$12) -> 6 | H8: 9 | I8: 3
A9: 0.863019457 | B9: 0.5942985689 | C9: 0.3932698377 | D9: 0.5040133128 | F9: =RANK(A9,$A$8:$D$12) -> 2 | G9: 5 | H9: 12 | I9: 8
A10: 0.8747469745 | B10: 0.2732989954 | C10: 0.3791907493 | D10: 0.5053881232 | F10: 1 | G10: 15 | H10: 13 | I10: 7
A11: 0.7536470424 | B11: 0.4108196879 | C11: 0.3966769341 | D11: 0.178708649 | F11: 4 | G11: 10 | H11: 11 | I11: 18
A12: 0.1160281144 | B12: 0.3129627839 | C12: 0.2304258934 | D12: 0.2180410634 | F12: 19 | G12: 14 | H12: 16 | I12: 17
